bitfinex/quotes_ETHUSD_20251017
["timestamp","ask_amount","ask_price","bid_price","bid_amount"]
[1760718004939,0.002,3834.9,3834.8,3.24129792]
[1760718005337,2.83560139,3836.0,3834.8,3.24129792]
[1760718005338,0.62690748,3837.0,3834.8,1.16339109]
[1760718005579,0.40890748,3837.0,3836.9,2.60627068]
[1760718005784,0.40890748,3837.0,3836.9,4.96787068]
[1760718006084,0.2164,3837.8,3837.6,3.23939528]
[1760718006468,0.2164,3838.2,3837.6,3.23939528]
[1760718006776,0.4531,3837.7,3837.6,0.6336]
[1760718007077,0.4531,3837.7,3837.6,3.23939528]
[1760718007078,0.002,3837.7,3837.6,3.23939528]
[1760718007840,0.002,3837.7,3837.6,4.96739528]
[1760718008769,0.002,3837.7,3837.6,4.99345323]
[1760718008973,0.002,3837.7,3837.6,4.96739528]
[1760718009375,0.4531,3837.7,3837.6,2.3616]
[1760718009545,0.4531,3837.7,3837.6,0.6336]
[1760718009953,0.4531,3837.7,3837.2,1.728]
[1760718010150,0.4511,3837.6,3837.5,0.6336]
[1760718010384,0.002,3837.7,3837.6,3.23939528]
[1760718010547,0.002,3837.7,3837.6,4.96739528]
[1760718011166,0.002,3837.7,3836.6,15.28361266]
[1760718011479,0.4511,3837.6,3835.9,0.1144]
[1760718011687,0.002,3837.7,3836.3,15.28361266]
[1760718011853,0.002,3837.7,3836.6,2.60647448]
[1760718012057,0.002,3837.7,3837.6,3.23939528]
[1760718012984,0.002,3837.7,3837.6,3.36899528]
[1760718013285,0.4531,3837.7,3837.6,0.6336]
[1760718013581,0.002,3837.7,3837.6,3.23939528]
[1760718014974,0.002,3837.7,3837.6,4.96739528]
[1760718015178,0.002,3837.7,3837.6,5.43855323]
[1760718015380,0.002,3837.7,3837.6,5.41249528]
[1760718015686,0.002,3838.1,3838.0,4.96712371]
[1760718016687,0.002,3838.1,3838.0,5.43827894]
[1760718016887,0.002,3838.5,3838.4,3.23885218]
[1760718017102,0.002,3838.5,3838.4,4.96685218]
[1760718017263,0.002,3838.5,3838.4,1.728]
[1760718017594,0.002,3838.5,3837.3,15.28361266]
[1760718017595,0.4531,3838.5,3837.4,1.728]
[1760718017894,0.4531,3838.5,3836.3,2.60664723]
[1760718017895,2.60544956,3838.2,3836.5,15.28361266]
[1760718018095,0.2164,3837.5,3837.4,2.60593109]
[1760718018270,0.002,3838.5,3837.4,0.4451]
[1760718018473,0.002,3838.5,3838.3,0.6336]
[1760718018673,0.002,3838.5,3837.6,4.33374156]
[1760718018674,0.002,3838.5,3837.7,0.6336]
[1760718018873,0.4511,3838.4,3837.9,0.6336]
[1760718019074,0.002,3838.5,3837.7,2.60570478]
[1760718019075,0.4511,3838.3,3837.7,2.60570478]
[1760718019273,2.60724169,3838.5,3838.3,0.6336]
[1760718019274,0.002,3838.5,3838.3,0.6336]
[1760718019476,0.002,3838.5,3838.3,3.23886999]
[1760718019660,0.002,3838.5,3838.3,2.60530085]
[1760718019860,0.002,3838.5,3838.1,0.6336]
[1760718019861,0.002,3838.5,3838.4,3.23885218]
[1760718020090,0.002,3838.5,3838.2,0.6336]
[1760718020289,0.002,3838.5,3838.3,0.6336]
[1760718020490,0.4511,3838.4,3838.3,0.6336]
[1760718020758,0.4511,3838.4,3838.0,0.6336]
[1760718020863,0.4511,3838.3,3838.0,0.6336]
[1760718021070,2.60525687,3838.4,3837.9,0.6336]
[1760718021071,0.4511,3838.2,3837.9,0.6336]
[1760718021306,0.4511,3838.1,3837.8,0.6336]
[1760718021612,0.2164,3837.9,3837.8,0.6336]
[1760718021921,0.2164,3837.9,3836.9,1.8424]
[1760718021922,3.29094867,3837.9,3837.1,2.60607824]
[1760718022070,0.6853,3837.9,3836.4,0.4451]
[1760718022467,0.6853,3837.9,3837.1,1.728]
[1760718022701,2.60572969,3837.7,3837.1,4.33412998]
[1760718022896,2.60572969,3837.7,3837.0,1.728]
[1760718023077,2.60572969,3837.7,3837.0,2.60618922]
[1760718023078,0.4503,3837.6,3837.0,2.60618922]
[1760718023276,0.4503,3837.6,3836.1,0.4451]
[1760718023277,0.4503,3837.6,3836.0,17.89047108]
[1760718023466,3.291186,3837.5,3836.7,2.60634866]
[1760718023804,0.235,3837.5,3835.8,15.28361266]
[1760718024098,0.235,3837.5,3834.9,2.82400255]
[1760718024099,3.05624651,3837.4,3836.4,2.60656919]
[1760718024400,0.235,3837.5,3836.2,1.728]
[1760718024600,0.235,3837.5,3837.2,0.1296]
[1760718024796,2.60601146,3837.3,3837.2,0.1296]
[1760718024980,3.05631146,3837.3,3837.2,0.1296]
[1760718025378,0.4503,3837.3,3837.2,0.1296]
[1760718025783,3.056299,3837.3,3837.2,0.1296]
[1760718026572,3.056299,3837.3,3835.1,0.4451]
[1760718026573,2.60627788,3836.9,3836.2,2.6067093]
[1760718026773,2.60613484,3837.1,3837.0,0.1296]
[1760718026973,2.60593109,3837.4,3837.0,0.1296]
[1760718027201,2.60610803,3837.2,3837.0,0.1296]
[1760718027401,2.60610803,3837.2,3836.5,0.6336]
[1760718027602,2.60610803,3837.2,3837.1,0.1296]
[1760718027603,2.60606692,3837.2,3837.1,0.1296]
[1760718027790,0.235,3837.5,3835.4,1.728]
[1760718028104,0.235,3837.5,3836.5,0.6336]
[1760718028105,2.6061364,3837.1,3836.5,0.6336]
[1760718028403,0.235,3837.5,3836.5,0.6336]
[1760718028404,0.4503,3837.3,3836.5,0.6336]
[1760718028605,2.60607966,3837.2,3836.6,0.6336]
[1760718028792,2.60631539,3836.9,3836.2,2.3616]
[1760718028982,2.60631539,3836.9,3836.3,0.6336]
[1760718029171,0.4503,3836.8,3836.1,0.6336]
[1760718029394,2.6063134,3836.9,3836.1,0.77406814]
[1760718029599,2.60600098,3837.3,3836.7,0.6336]
[1760718029801,2.60608751,3837.2,3836.6,0.6336]
[1760718030012,0.235,3837.5,3836.6,3.24002482]
[1760718030312,2.60606988,3837.2,3836.6,0.6336]
[1760718030519,2.60632596,3836.9,3835.6,0.6336]
[1760718030713,2.60632596,3836.9,3836.3,0.6336]
[1760718031307,2.60634091,3836.8,3836.2,0.6336]
[1760718031608,3.05644644,3837.1,3836.1,0.6336]
[1760718031609,2.60625593,3837.0,3836.1,0.6336]
[1760718031912,2.60625593,3837.0,3836.4,0.6336]
[1760718032119,0.235,3837.5,3836.7,2.60635944]
[1760718032321,0.235,3837.5,3836.8,0.6336]
[1760718032619,0.235,3837.9,3837.1,0.6336]
[1760718032819,0.235,3837.9,3837.3,0.6336]
[1760718033020,2.60577712,3837.7,3837.3,0.6336]
[1760718033186,0.235,3837.9,3836.6,0.6336]
[1760718033187,0.4503,3837.6,3836.6,0.6336]
[1760718033522,2.60600499,3837.3,3836.7,0.6336]
[1760718033817,2.60600499,3837.3,3836.4,2.60661036]
[1760718033818,0.235,3836.8,3836.5,0.6336]
[1760718034022,0.235,3837.0,3836.6,2.60642492]
[1760718034220,0.235,3837.4,3836.7,3.23996349]
[1760718034396,0.235,3837.4,3836.6,0.6336]
[1760718034397,2.60608615,3837.2,3836.6,0.6336]
[1760718034596,0.235,3837.4,3836.6,2.3616]
[1760718034819,2.8409375,3837.4,3836.8,0.6336]
[1760718035009,0.235,3837.4,3836.8,3.23992926]
[1760718035209,0.235,3837.4,3836.8,0.6336]
[1760718035419,0.6853,3837.4,3836.7,0.6336]
[1760718035621,2.60630247,3836.9,3836.3,0.6336]
[1760718035828,3.05660247,3836.9,3836.3,3.24027237]
[1760718036319,3.05658445,3836.9,3836.3,3.24027237]
[1760718036524,0.4503,3836.9,3836.5,0.6336]
[1760718036701,0.4503,3836.9,3836.5,3.24013695]
[1760718036904,0.4503,3836.9,3836.5,0.6336]
[1760718037218,3.24937659,3837.9,3837.2,0.6336]
[1760718037219,0.6437441,3837.9,3837.2,0.6336]
[1760718037402,2.60573863,3837.7,3837.2,0.6336]
[1760718037609,0.6437441,3837.9,3836.7,0.6336]
[1760718037844,0.4503,3838.3,3837.7,2.60568386]
[1760718038122,0.4503,3838.3,3838.2,0.1296]
[1760718038123,2.60532006,3838.3,3838.2,0.1296]
[1760718038424,2.60561568,3837.9,3837.3,0.6336]
[1760718038628,2.60561568,3837.9,3837.2,0.6336]
[1760718038629,0.235,3837.8,3837.2,0.6336]
[1760718038792,0.235,3837.8,3837.4,0.1296]
[1760718038793,2.60586319,3837.5,3837.4,0.1296]
[1760718039126,2.60572738,3837.7,3837.6,0.1296]
[1760718039329,0.235,3837.8,3837.6,0.1296]
[1760718039534,2.60553843,3838.0,3837.6,0.1296]
[1760718039722,2.60547394,3838.1,3837.6,0.1296]
[1760718040039,0.4503,3838.2,3838.0,0.1296]
[1760718040040,3.10112126,3838.2,3838.0,0.1296]
[1760718040208,3.05575582,3838.1,3838.0,0.1296]
[1760718040613,0.04541324,3838.2,3838.0,0.1296]
[1760718040824,2.60525689,3838.4,3838.0,0.1296]
[1760718041137,0.002,3838.5,3838.1,0.85]
[1760718041300,0.002,3838.5,3838.4,2.60525218]
[1760718041501,0.002,3838.5,3838.4,3.36845218]
[1760718042332,0.002,3838.5,3838.4,0.7632]
[1760718042730,0.002,3838.5,3838.4,3.36845218]
[1760718043614,0.002,3838.5,3838.4,0.7632]
[1760718043814,2.60718431,3838.5,3838.4,0.1296]
[1760718044030,0.4523,3838.5,3838.4,0.1296]
[1760718044235,3.05748431,3838.5,3838.4,0.1296]
[1760718044540,0.4523,3838.5,3837.6,0.001]
[1760718044706,2.60525218,3838.4,3838.2,0.1296]
[1760718044907,3.05562006,3838.3,3838.2,0.1296]
[1760718045236,2.60718706,3838.5,3837.9,0.6336]
[1760718045237,2.60724064,3838.5,3837.9,0.6336]
[1760718045535,2.60724064,3838.5,3838.3,0.1296]
[1760718045536,0.002,3838.5,3838.3,0.1296]
[1760718045738,0.4523,3838.5,3838.3,0.1296]
[1760718045944,3.05754792,3838.5,3838.3,0.1296]
[1760718046107,2.60525218,3838.4,3838.3,0.1296]
[1760718046436,0.4503,3838.4,3838.3,0.1296]
[1760718046646,2.60525218,3838.4,3838.3,0.1296]
[1760718046943,3.05555218,3838.4,3838.3,0.1296]
[1760718047150,2.60532006,3838.3,3837.6,0.001]
[1760718047348,2.84072738,3837.7,3837.6,0.001]
[1760718047547,0.235,3837.7,3837.6,0.001]
[1760718047845,2.6056018,3837.9,3837.6,0.1306]
[1760718048148,0.4503,3837.8,3837.6,0.001]
[1760718048522,2.60565949,3837.8,3837.7,0.1296]
[1760718048726,2.60572738,3837.7,3837.6,0.001]
[1760718049251,3.05602738,3837.7,3837.6,0.001]
[1760718049546,0.235,3837.9,3837.6,0.001]
[1760718049853,0.4503,3837.7,3837.6,0.001]
[1760718050148,2.60572738,3837.7,3837.6,0.001]
[1760718050349,2.84065705,3837.9,3837.6,0.001]
[1760718050350,0.235,3837.9,3837.6,0.001]
[1760718050549,3.05602738,3837.7,3837.6,0.001]
[1760718051052,0.235,3837.9,3837.6,0.001]
[1760718051214,2.84060942,3837.9,3837.6,0.001]
[1760718051420,0.4503,3838.2,3837.6,0.001]
[1760718051616,2.60538998,3838.2,3837.6,0.6346]
[1760718051937,2.60546861,3838.1,3837.6,0.001]
[1760718052117,3.08516123,3838.3,3837.6,0.001]
[1760718052317,3.03993731,3838.0,3837.6,0.001]
[1760718052517,0.2305,3837.7,3837.6,0.001]
[1760718053452,2.6054574,3838.1,3837.6,0.001]
[1760718053843,2.60554067,3838.0,3837.6,0.001]
[1760718054258,0.6649,3837.9,3837.6,0.001]
[1760718054559,0.40865505,3838.7,3837.6,0.001]
[1760718054758,0.2305,3837.9,3837.6,0.001]
[1760718055052,0.40865505,3838.7,3837.7,0.6336]
[1760718055053,2.60539214,3838.2,3837.7,0.6336]
[1760718055552,2.60719017,3838.5,3837.6,0.001]
[1760718055553,0.002,3838.5,3837.6,0.001]
[1760718055751,2.60545733,3838.1,3837.6,0.6346]
[1760718055943,0.4344,3838.0,3837.6,0.001]
[1760718056149,0.2305,3837.9,3837.6,0.001]
[1760718056343,2.60544127,3838.2,3837.6,0.001]
[1760718056657,0.2305,3837.7,3837.6,0.001]
[1760718057046,0.2305,3837.9,3837.6,0.001]
[1760718057432,2.60572738,3837.7,3837.6,0.001]
[1760718057953,3.04012738,3837.7,3837.6,0.001]
[1760718058859,2.83613564,3837.9,3837.6,0.001]
[1760718058860,0.2305,3837.9,3837.6,0.001]
[1760718059029,2.60572738,3837.7,3837.6,0.001]
[1760718059574,3.04012738,3837.7,3837.6,0.1306]
[1760718060172,3.04012738,3837.7,3837.6,0.001]
[1760718063266,0.04541403,3838.0,3837.6,0.001]
[1760718063780,2.60572738,3837.7,3837.6,0.001]
[1760718064231,2.605999,3837.3,3837.2,0.001]
[1760718064846,3.038299,3837.3,3837.2,0.001]
[1760718065166,4.766299,3837.3,3837.2,0.001]
[1760718066088,5.17507453,3837.3,3837.2,0.001]
[1760718066285,3.01477453,3837.3,3837.2,0.001]
[1760718067054,2.82890754,3837.8,3837.2,0.001]
[1760718067055,0.2232,3837.8,3837.2,0.001]
[1760718067249,0.2232,3837.9,3837.2,0.001]
[1760718067671,0.2232,3837.9,3837.2,0.1154]
[1760718067883,2.57101567,3838.1,3837.2,0.1154]
[1760718067884,0.41071567,3838.1,3837.5,2.60580469]
[1760718068084,2.60557903,3838.0,3837.3,3.23958667]
[1760718068384,0.2232,3837.9,3837.2,0.001]
[1760718068585,2.60593127,3837.4,3836.8,0.001]
[1760718068907,2.60593127,3837.4,3834.9,0.2164]
[1760718068908,0.6336,3836.6,3833.9,0.3317]
[1760718069109,0.6555,3836.5,3834.3,0.3317]
[1760718069253,0.6555,3836.5,3834.4,0.02607969]
[1760718069620,2.60661653,3836.4,3834.6,2.60783393]
[1760718069885,0.6555,3836.5,3834.5,0.3317]
[1760718069886,2.60721031,3835.6,3834.5,2.93957857]
[1760718070179,2.60721817,3835.6,3834.7,2.60770332]
[1760718070383,2.60693046,3836.0,3834.5,0.3317]
[1760718070569,2.60706791,3835.8,3835.5,0.2173]
[1760718070759,2.60715403,3835.6,3835.5,0.2173]
[1760718071189,2.60710636,3835.7,3835.5,0.2173]
[1760718071560,0.26863716,3836.5,3832.9,0.2173]
[1760718071761,1.728,3835.5,3833.5,0.3317]
[1760718071972,0.88133403,3835.4,3833.5,0.3317]
[1760718072159,2.6076997,3834.8,3833.6,0.02608514]
[1760718072375,2.60756254,3835.0,3834.0,0.4461]
[1760718072573,0.04544704,3835.2,3834.0,3.05431068]
[1760718072754,2.60776682,3834.7,3834.0,0.4461]
[1760718072952,2.60769792,3834.8,3834.0,0.4461]
[1760718073156,0.2232,3834.8,3834.0,0.1144]
[1760718073374,0.2232,3834.8,3834.6,0.1296]
[1760718073375,2.60776592,3834.7,3834.6,0.1296]
[1760718073576,2.60776592,3834.7,3832.6,0.001]
[1760718073577,2.1603,3834.7,3832.7,0.12979954]
[1760718073806,2.1603,3834.7,3834.2,0.1304]
[1760718073996,2.60803797,3834.3,3834.2,0.1304]
[1760718075325,3.04033797,3834.3,3834.2,0.1304]
[1760718075503,2.60803797,3834.3,3834.2,0.1304]
[1760718076018,0.4323,3834.9,3834.2,0.1304]
[1760718076019,0.3528,3835.3,3834.2,0.1304]
[1760718076228,2.60783721,3834.6,3834.2,0.1304]
[1760718076381,2.6078821,3834.6,3834.1,0.1144]
[1760718076581,2.6078821,3834.6,3834.5,0.1296]
[1760718076776,0.3528,3835.3,3834.5,0.1296]
[1760718077076,2.60763911,3834.9,3834.8,0.1296]
[1760718078094,0.40902061,3835.1,3834.8,0.1296]
[1760718078300,0.04544766,3835.2,3834.8,0.1296]
[1760718078502,0.1296,3835.6,3835.0,0.1296]
[1760718078831,0.04544457,3835.7,3835.1,2.60743028]
[1760718078977,2.74082988,3837.0,3835.9,2.60689684]
[1760718079181,2.60646488,3836.7,3836.5,0.1296]
[1760718079502,2.60664991,3836.4,3836.1,0.2173]
[1760718079818,2.87490358,3836.9,3836.8,0.1296]
[1760718079999,0.2686329,3836.9,3836.3,0.1296]
[1760718080198,0.005,3837.0,3836.8,0.1296]
[1760718080415,3.2617851,3836.9,3836.8,0.1296]
[1760718080613,3.2617851,3836.9,3835.6,0.2173]
[1760718080816,0.6555,3836.9,3836.5,0.1296]
[1760718081023,2.60646045,3836.7,3836.5,0.1296]
[1760718081229,0.005,3837.0,3836.5,0.1296]
[1760718081396,2.60647448,3836.6,3836.5,0.1296]
[1760718081603,0.005,3837.0,3836.5,0.1296]
[1760718081910,2.61121003,3837.0,3836.5,0.1296]
[1760718082244,2.82267068,3836.9,3836.8,0.1296]
[1760718082441,2.60627068,3836.9,3836.8,0.1296]
[1760718082738,0.005,3837.0,3836.8,0.1296]
[1760718082967,2.61120592,3837.0,3836.8,0.1296]
[1760718083092,0.005,3837.0,3836.8,0.1296]
[1760718083438,0.005,3837.0,3836.9,0.1296]
[1760718083929,2.61120276,3837.0,3836.9,0.1296]
[1760718084130,3.08610276,3837.0,3836.9,0.1296]
[1760718084424,2.60655024,3836.5,3835.8,2.60696841]
[1760718084650,2.60633883,3836.8,3836.7,0.1296]
[1760718084826,2.61121984,3837.0,3836.3,2.60667229]
[1760718084827,2.61120927,3837.0,3836.3,2.60667229]
[1760718085029,0.005,3837.0,3836.9,0.1296]
[1760718086538,0.005,3837.0,3836.9,2.73587068]
[1760718087031,0.005,3837.0,3836.9,0.1296]
[1760718087734,0.005,3837.0,3836.9,3.70117068]
[1760718089324,0.005,3837.0,3836.9,6.91457068]
[1760718089528,0.005,3837.0,3836.9,8.64257068]
[1760718090457,1e-08,3837.0,3836.9,8.64257068]
[1760718090842,1e-08,3837.0,3836.9,5.29957068]
[1760718091041,1e-08,3837.0,3836.9,35.02209868]
[1760718091256,1e-08,3837.0,3836.9,17.66809068]
[1760718091431,1e-08,3837.0,3836.9,10.34689668]
[1760718091637,1e-08,3837.0,3836.9,13.15789668]
[1760718092022,1e-08,3837.0,3836.9,10.34689668]
[1760718092434,1e-08,3837.0,3836.9,9.71329668]
[1760718092633,1e-08,3837.0,3836.9,6.36487368]
[1760718092831,1e-08,3837.0,3836.9,15.07534668]
[1760718093059,1e-08,3837.0,3836.9,14.33956468]
[1760718093264,1e-08,3837.0,3836.9,5.29957068]
[1760718094067,1e-08,3837.0,3836.9,8.68590468]
[1760718095060,1e-08,3837.0,3836.9,8.35420468]
[1760718095384,1e-08,3837.0,3835.7,14.077031]
[1760718095531,1e-08,3837.0,3836.9,2.60627068]
[1760718096169,1e-08,3837.0,3836.9,3.23987068]
[1760718098085,1e-08,3837.0,3836.9,0.6336]
[1760718098484,1e-08,3837.0,3836.9,2.60627068]
[1760718098801,1e-08,3837.0,3836.9,3.23987068]
[1760718099001,0.00200001,3837.0,3836.9,3.23987068]
[1760718099180,0.00200001,3837.0,3836.9,3.26593338]
[1760718099371,0.00200001,3837.0,3836.9,5.45523338]
[1760718099596,0.00200001,3837.0,3836.9,32.72159868]
[1760718099900,0.00200001,3837.0,3836.9,25.33689568]
[1760718100219,0.00200001,3837.0,3836.9,17.74997968]
[1760718100371,0.00200001,3837.0,3836.9,5.42917068]
[1760718100698,0.00200001,3837.0,3836.9,5.09747068]
[1760718101090,0.00200001,3837.0,3836.9,0.7632]
[1760718101289,0.00200001,3837.0,3836.9,3.36947068]
[1760718102387,0.00200001,3837.0,3836.9,6.24574338]
[1760718102706,0.00200001,3837.0,3836.9,6.09008068]
[1760718102905,0.00200001,3837.0,3836.9,22.56050968]
[1760718103082,0.00200001,3837.0,3836.9,20.83250968]
[1760718103498,0.00200001,3837.0,3836.9,22.56050968]
[1760718103885,0.00200001,3837.0,3836.9,12.87344168]
[1760718104090,0.00200001,3837.0,3836.9,14.33744168]
[1760718104303,0.00200001,3837.0,3836.9,14.66914168]
[1760718105101,0.00200001,3837.0,3836.9,30.85183368]
[1760718105306,0.00200001,3837.0,3836.9,25.17647968]
[1760718105706,0.00200001,3837.0,3836.9,21.17010068]
[1760718106002,0.00200001,3837.0,3836.9,29.87470868]
[1760718106720,0.00200001,3837.0,3836.9,20.36071368]
[1760718106917,0.00200001,3837.0,3836.9,14.48270568]
[1760718107225,0.00200001,3837.0,3836.9,32.15331368]
[1760718107422,0.00200001,3837.0,3836.9,26.65058768]
[1760718107783,0.00200001,3837.0,3836.9,26.98228768]
[1760718107985,0.00200001,3837.0,3836.9,25.46472668]
[1760718108206,0.00200001,3837.0,3836.9,14.09731768]
[1760718108418,0.00200001,3837.0,3836.9,4.33427068]
[1760718108891,0.00200001,3837.0,3836.9,4.96787068]
[1760718109233,0.00200001,3837.0,3836.9,1.728]
[1760718109413,0.00200001,3837.0,3836.2,2.60674625]
[1760718109414,0.47690001,3837.0,3836.2,2.60674625]
[1760718109735,0.2164,3836.3,3836.2,2.60674625]
[1760718109921,0.6913,3836.3,3836.1,2.60779125]
[1760718110219,0.2164,3836.3,3836.2,2.60674625]
[1760718110386,0.2164,3836.3,3836.1,0.001]
[1760718110582,3.08164625,3836.2,3836.1,0.001]
[1760718112765,0.4749,3836.2,3836.1,0.001]
[1760718112913,0.4749,3836.2,3836.1,0.1306]
[1760718113545,3.08164625,3836.2,3836.1,0.1306]
[1760718114049,3.08164625,3836.2,3836.1,0.001]
[1760718114250,4.80964625,3836.2,3836.1,0.001]
[1760718114434,2.60762992,3834.9,3834.8,0.001]
[1760718114784,2.60762992,3834.9,3834.4,0.001]
[1760718114785,2.60790194,3834.5,3834.4,0.001]
[1760718114951,0.4591,3834.8,3834.4,0.001]
[1760718115157,0.4591,3834.5,3834.4,0.1306]
[1760718115338,0.4591,3834.5,3834.4,0.001]
[1760718115516,0.219,3834.9,3834.4,2.60894864]
[1760718115715,0.6781,3834.9,3834.4,2.73854864]
[1760718116034,0.219,3834.9,3834.8,0.1296]
[1760718116347,0.219,3834.9,3834.8,2.73729792]
[1760718116564,0.219,3835.3,3834.8,0.1296]
[1760718116863,0.219,3835.3,3835.2,0.1296]
[1760718117042,0.219,3835.6,3835.3,2.60735796]
[1760718117218,0.219,3835.6,3835.5,2.736822]
[1760718117618,0.4591,3836.1,3835.5,2.736822]
[1760718117843,0.2164,3836.3,3836.0,0.1296]
[1760718118148,3.06590089,3836.2,3836.0,0.1296]
[1760718118345,0.4591,3836.1,3835.5,2.60720562]
[1760718118618,3.06592381,3836.1,3835.5,0.6336]
[1760718118899,0.2164,3836.3,3836.0,0.1296]
[1760718119077,1.9444,3836.3,3836.0,0.1296]
[1760718119284,0.4591,3836.2,3836.0,0.1296]
[1760718119683,2.60674712,3836.2,3836.0,0.1296]
[1760718119874,0.4591,3836.1,3836.0,0.1296]
[1760718120492,0.2164,3836.3,3836.0,2.73641434]
[1760718120673,0.00200001,3837.0,3836.2,0.2173]
[1760718120900,0.00200001,3837.0,3836.9,2.60627068]
[1760718121070,0.00200001,3837.0,3836.9,3.23987068]
[1760718121902,0.00200001,3837.0,3836.9,3.57357068]
[1760718122074,0.00200001,3837.0,3836.9,3.59963338]
[1760718122484,0.00200001,3837.0,3836.9,3.57357068]
[1760718122925,0.00200001,3837.0,3836.9,16.44662338]
[1760718123121,0.00200001,3837.0,3836.9,19.22756068]
[1760718123420,0.00200001,3837.0,3836.9,10.14123468]
[1760718123988,0.00200001,3837.0,3836.9,10.65778468]
[1760718124491,0.00200001,3837.0,3836.9,4.96787068]
[1760718124911,0.00200001,3837.0,3836.9,4.33427068]
[1760718125108,0.00200001,3837.0,3836.9,6.78461438]
[1760718125307,0.00200001,3837.0,3836.9,4.96787068]
[1760718127015,0.00200001,3837.0,3836.9,14.43870138]
[1760718127215,0.00200001,3837.0,3836.9,14.41263868]
[1760718127992,0.00200001,3837.0,3836.9,31.93943268]
[1760718128195,0.00200001,3837.0,3836.9,22.91653468]
[1760718128417,0.00200001,3837.0,3836.9,19.63804068]
[1760718128638,0.00200001,3837.0,3836.9,20.65527968]
[1760718129002,0.00200001,3837.0,3836.9,25.48856468]
[1760718129207,0.00200001,3837.0,3836.9,21.06917468]
[1760718129405,0.00200001,3837.0,3836.9,15.08175368]
[1760718129638,0.00200001,3837.0,3836.9,2.60627068]
[1760718129994,0.00200001,3837.0,3836.9,3.23987068]
[1760718130727,0.00200001,3837.0,3836.9,3.36947068]
[1760718131092,0.00200001,3837.0,3836.9,3.39553338]
[1760718131292,0.00200001,3837.0,3836.9,10.32554038]
[1760718131501,0.00200001,3837.0,3836.9,5.09747068]
[1760718131703,0.00200001,3837.0,3836.9,5.12353338]
[1760718131909,0.00200001,3837.0,3836.9,5.09747068]
[1760718133131,0.00200001,3837.0,3836.9,5.12353338]
[1760718133297,0.00200001,3837.0,3836.9,5.09747068]
[1760718133632,0.00200001,3837.0,3836.9,22.72516868]
[1760718133999,0.00200001,3837.0,3836.9,22.51464768]
[1760718134327,0.00200001,3837.0,3836.9,11.69674568]
[1760718134519,0.00200001,3837.0,3836.9,5.09747068]
[1760718135217,0.00200001,3837.0,3836.9,16.41885468]
[1760718135535,0.00200001,3837.0,3836.9,12.77271268]
[1760718135830,0.00200001,3837.0,3836.9,13.10641268]
[1760718136398,0.00200001,3837.0,3836.9,24.32198168]
[1760718136599,0.00200001,3837.0,3836.9,24.19238168]
[1760718136847,0.00200001,3837.0,3836.9,4.33427068]
[1760718137014,0.46030001,3837.0,3836.9,4.33427068]
[1760718137199,0.46030001,3837.0,3836.9,4.96787068]
[1760718137623,0.00200001,3837.0,3836.9,4.96787068]
[1760718137841,0.46030001,3837.0,3836.9,4.96787068]
[1760718138035,0.00200001,3837.0,3836.9,4.96787068]
[1760718139530,0.46030001,3837.0,3836.9,4.96787068]
[1760718139739,0.00200001,3837.0,3836.9,4.96787068]
[1760718140147,0.46030001,3837.0,3836.9,4.96787068]
[1760718140630,0.00200001,3837.0,3836.9,4.96787068]
[1760718140952,0.00200001,3837.0,3836.9,20.25089546]
[1760718141254,0.00200001,3837.0,3836.9,41.98343746]
[1760718141459,0.00200001,3837.0,3836.9,21.06243968]
[1760718141645,0.00200001,3837.0,3836.9,10.25172868]
[1760718142017,0.00200001,3837.0,3836.9,7.77087068]
[1760718142319,0.00200001,3837.0,3836.9,38.10457068]
[1760718142539,0.00200001,3837.0,3836.9,34.91709868]
[1760718142730,0.00200001,3837.0,3836.9,28.93390068]
[1760718142926,0.00200001,3837.0,3836.9,10.84757068]
[1760718143125,0.00200001,3837.0,3836.9,33.14939068]
[1760718143334,0.00200001,3837.0,3836.9,20.46104968]
[1760718143529,1e-08,3837.6,3837.0,1.728]
[1760718143732,1e-08,3838.0,3837.9,20.96435859]
[1760718144040,1e-08,3838.0,3837.9,24.91822759]
[1760718144357,1e-08,3838.0,3837.9,23.64989959]
[1760718144751,0.002,3838.8,3838.7,20.62091058]
[1760718144964,0.002,3838.8,3838.7,25.15091058]
[1760718145259,0.002,3839.2,3839.1,34.55657616]
[1760718145416,0.234,3841.0,3840.1,0.6336]
[1760718145417,0.234,3840.4,3840.1,0.6336]
[1760718145622,0.234,3840.4,3840.3,3.23756323]
[1760718145623,0.6818,3840.4,3840.3,3.23756323]
[1760718145948,0.234,3840.4,3840.3,3.23756323]
[1760718146114,0.234,3840.4,3840.3,7.70847423]
[1760718146314,0.4478,3840.8,3840.3,7.70847423]
[1760718146315,0.4478,3840.8,3840.7,2.60369203]
[1760718146556,0.234,3841.0,3840.7,2.60369203]
[1760718146760,0.234,3841.0,3840.9,3.23715645]
[1760718146959,0.234,3841.0,3840.9,0.6336]
[1760718147140,0.234,3841.0,3840.9,3.23715645]
[1760718147343,0.234,3841.0,3840.9,0.6336]
[1760718147548,0.6818,3841.0,3840.9,3.23715645]
[1760718147730,0.6818,3841.0,3840.1,2.802]
[1760718147731,0.6818,3841.0,3840.8,2.60360656]
[1760718148053,0.6818,3841.0,3840.6,0.6336]
[1760718148054,0.4478,3840.9,3840.6,0.6336]
[1760718148425,0.4478,3840.8,3840.5,0.6336]
[1760718148630,0.4478,3840.7,3840.5,0.6336]
[1760718148835,0.4478,3840.6,3840.4,2.60387966]
[1760718149060,0.234,3841.0,3839.8,4.529]
[1760718149061,0.234,3841.0,3840.5,0.6336]
[1760718149242,0.234,3841.0,3840.5,3.2374145]
[1760718149450,0.234,3841.0,3839.9,0.6336]
[1760718149770,0.234,3840.0,3839.9,3.23783448]
[1760718150072,0.234,3840.0,3839.6,2.60437516]
[1760718150073,0.6818,3840.0,3839.6,2.60437516]
[1760718150273,0.4478,3839.9,3838.7,17.429704]
[1760718150439,0.4478,3839.8,3838.9,2.60491084]
[1760718150633,0.4478,3839.7,3838.6,2.308]